bitfinex/quotes_ETHUSD_20240716
["timestamp","ask_amount","ask_price","bid_price","bid_amount"]
[1721158639722,2.86961,3484.8,3483.5,2.87066]
[1721158640100,3.0,3484.7,3483.5,2.87066]
[1721158640841,3.0,3484.7,3483.6,2.87056]
[1721158640998,2.86949,3485.0,3483.6,2.87056]
[1721158641200,3.0,3484.9,3483.6,2.87056]
[1721158641414,2.86948,3485.0,3483.7,0.574131]
[1721158641620,3.0,3484.9,3483.7,3.444591]
[1721158641847,2.86944,3485.0,3483.7,3.444591]
[1721158642002,3.0,3484.9,3483.7,3.444591]
[1721158642344,2.86913,3485.4,3483.8,2.92777264]
[1721158642630,2.4105,3485.9,3483.9,0.58761036]
[1721158642631,2.86927,3485.2,3483.9,0.58761036]
[1721158642842,2.86953,3484.9,3483.9,0.58761036]
[1721158643000,2.86953,3484.9,3483.7,2.3742]
[1721158643924,2.86953,3484.9,3483.0,5.89508]
[1721158643925,2.86972,3484.7,3483.2,2.8709]
[1721158644229,2.86978,3484.6,3483.3,2.87083]
[1721158644437,3.0,3484.6,3483.1,2.871]
[1721158644603,2.86996,3484.4,3483.0,2.3742]
[1721158644949,2.87015,3484.2,3483.0,2.3742]
[1721158645333,2.87032,3484.0,3482.7,0.29997712]
[1721158645862,2.87012,3484.2,3482.7,0.29997712]
[1721158646000,2.87034,3483.9,3482.7,0.29997712]
[1721158646201,2.87053,3483.7,3482.7,0.29997712]
[1721158646398,0.574087,3483.6,3482.7,0.29997712]
[1721158646617,2.87081,3483.4,3482.7,0.29997712]
[1721158646820,2.87081,3483.4,3482.4,2.3742]
[1721158647334,3.444717,3483.6,3482.4,2.3742]
[1721158647637,2.8713,3482.8,3482.5,0.30012837]
[1721158647810,2.8713,3482.8,3481.7,2.4231]
[1721158648025,2.8713,3482.8,3482.0,0.3001225]
[1721158648217,2.87135,3482.7,3482.0,0.3001225]
[1721158648608,2.87169,3482.3,3481.1,2.4231]
[1721158648840,2.87169,3482.3,3481.2,0.24231]
[1721158649013,2.87155,3482.5,3481.2,0.54243759]
[1721158649453,3.0,3482.8,3481.2,0.54243759]
[1721158649611,2.87151,3482.5,3481.3,2.87248]
[1721158649815,2.87149,3482.6,3481.2,0.54243759]
[1721158650010,2.87163,3482.4,3481.2,0.30012759]
[1721158650410,3.0,3482.3,3481.2,0.30012759]
[1721158650625,2.87175,3482.2,3481.2,0.30012759]
[1721158650841,3.0,3482.1,3481.2,0.30012759]
[1721158652346,2.87193,3482.0,3481.2,0.30012759]
[1721158652656,2.87193,3482.0,3480.7,0.1525938]
[1721158652657,2.87207,3481.8,3480.7,0.1525938]
[1721158653164,3.0,3481.7,3480.7,0.1525938]
[1721158654161,2.87242,3481.4,3480.7,0.1525938]
[1721158654364,6.159752,3481.3,3480.7,0.1525938]
[1721158657666,2.87258,3481.2,3480.7,0.1525938]
[1721158657883,3.0,3481.1,3480.7,0.1525938]
[1721158658730,2.87283,3480.9,3480.7,0.1525938]
[1721158658992,0.287242,3481.3,3480.7,0.1525938]
[1721158658993,5.8729,3480.8,3480.7,0.1525938]
[1721158659277,2.87346,3480.2,3478.7,2.87457]
[1721158659480,2.87369,3479.9,3479.3,0.29960132]
[1721158659679,2.87369,3479.9,3478.6,2.87471]
[1721158659962,2.87369,3479.9,3478.5,2.4477]
[1721158659963,2.87369,3479.9,3478.9,0.29961593]
[1721158660127,3.23958134,3479.8,3478.9,0.29961593]
[1721158662286,0.36580134,3479.8,3478.9,0.29961593]
[1721158662426,0.36580134,3479.8,3478.0,2.3099]
[1721158662427,2.87408,3479.4,3478.0,5.18511]
[1721158662734,2.87408,3479.4,3478.3,0.29912621]
[1721158663351,2.87458,3478.8,3478.3,0.29912621]
[1721158663577,2.87458,3478.8,3477.2,0.1525938]
[1721158663578,2.87458,3478.8,3477.5,5.18552]
[1721158663787,0.574896,3478.7,3477.5,6.00690938]
[1721158663970,3.55,3479.3,3477.6,0.29969478]
[1721158663971,5.87452,3478.9,3477.6,0.29969478]
[1721158664145,2.87456,3478.8,3477.6,0.29969478]
[1721158664586,3.0,3478.9,3477.6,3.17520478]
[1721158664790,5.87454,3478.9,3477.6,3.17520478]
[1721158664962,2.87464,3478.7,3477.6,0.29969478]
[1721158665881,0.874893,3478.8,3477.6,0.29969478]
[1721158665882,3.749473,3478.8,3477.6,3.17523478]
[1721158666042,3.0,3478.9,3477.8,2.87535]
[1721158666243,2.87439,3479.0,3477.8,2.87535]
[1721158666484,3.0,3478.9,3477.6,3.17517478]
[1721158666695,5.87449,3478.9,3477.6,3.17517478]
[1721158667048,5.87449,3478.9,3477.7,2.87546]
[1721158667246,5.87449,3478.9,3477.7,3.71153348]
[1721158667478,3.0,3478.9,3477.7,3.71153348]
[1721158668153,5.87447,3478.9,3477.7,3.71153348]
[1721158668486,3.0,3478.9,3477.8,2.87537]
[1721158668655,3.0,3478.9,3477.8,3.79503483]
[1721158668842,3.244,3479.6,3477.8,3.79503483]
[1721158668843,2.87436,3479.1,3477.8,3.79503483]
[1721158669151,5.87446,3479.0,3477.8,0.91966483]
[1721158669551,3.0,3479.0,3477.8,0.91966483]
[1721158669862,3.0,3479.1,3477.9,0.40947696]
[1721158670062,7.35,3479.6,3478.7,5.36662]
[1721158670352,2.87374,3479.8,3478.7,2.492]
[1721158670893,2.87365,3479.9,3478.7,2.492]
[1721158671238,2.87375,3479.8,3478.7,2.492]
[1721158671437,3.0,3479.7,3478.7,2.492]
[1721158672245,3.0,3479.9,3478.8,0.53667]
[1721158672642,2.87345,3480.2,3478.8,3.41118]
[1721158673064,3.0,3480.1,3478.8,3.41118]
[1721158673269,2.87361,3480.0,3478.8,3.41118]
[1721158673473,3.0,3479.9,3478.8,3.41118]
[1721158673787,5.87348,3480.1,3478.9,0.877789]
[1721158674479,12.56656,3480.4,3478.9,0.877789]
[1721158674480,7.35,3480.4,3478.9,0.877789]
[1721158674683,7.35,3480.9,3479.5,2.8739]
[1721158674889,7.35,3480.9,3479.8,2.87364]
[1721158675093,2.87266,3481.1,3479.8,2.87364]
[1721158675244,2.87274,3481.0,3479.7,2.87376]
[1721158675581,2.87274,3481.0,3479.8,2.87372]
[1721158676179,10.22243,3481.4,3479.8,2.87372]
[1721158676391,10.22243,3481.4,3480.0,2.87349]
[1721158676588,10.22243,3481.4,3480.1,0.05746114]
[1721158676947,2.87226,3481.6,3480.2,2.87339]
[1721158677171,2.87207,3481.8,3480.2,2.87339]
[1721158677172,2.87207,3481.8,3480.3,5.38153734]
[1721158677669,7.35,3481.9,3480.3,5.32408]
[1721158677670,2.87217,3481.7,3480.3,5.32408]
[1721158677975,2.87238,3481.5,3480.3,6.143827]
[1721158678389,2.87255,3481.3,3480.3,2.4508]
[1721158678589,2.87264,3481.2,3480.3,2.4508]
[1721158679364,2.87266,3481.1,3480.3,2.4508]
[1721158679571,5.87279,3481.0,3479.9,0.3448509]
[1721158679877,2.8729,3480.8,3479.6,3.025589]
[1721158680364,2.8729,3480.8,3478.9,2.87442]
[1721158680365,2.87336,3480.3,3478.9,2.4922]
[1721158680564,2.87322,3480.5,3479.0,2.87433]
[1721158680766,2.87322,3480.5,3478.9,2.4922]
[1721158680767,2.87323,3480.4,3478.9,2.4922]
[1721158680966,7.35,3480.8,3478.9,2.4922]
[1721158680967,2.8732,3480.5,3478.9,2.4922]
[1721158681176,2.87305,3480.7,3479.2,2.8742]
[1721158681380,3.51796334,3480.6,3479.5,2.87395]
[1721158681578,3.51796334,3480.6,3479.3,0.574842]
[1721158681579,3.51796334,3480.6,3479.3,2.87408]
[1721158681896,3.39105334,3480.6,3479.1,2.8743]
[1721158682094,5.87315,3480.5,3479.2,2.8742]
[1721158682294,5.87315,3480.5,3479.3,0.57485]
[1721158682502,2.87324,3480.4,3479.3,0.57485]
[1721158683267,2.87332,3480.3,3479.3,0.57485]
[1721158683468,2.87332,3480.3,3478.9,5.36665]
[1721158683695,2.87332,3480.3,3479.0,3.0]
[1721158683873,2.87332,3480.3,3479.0,5.87438]
[1721158684367,5.87315,3480.5,3478.9,2.4922]
[1721158684368,2.87341,3480.2,3478.9,2.4922]
[1721158684567,3.0,3480.1,3478.9,2.4922]
[1721158684768,2.87374,3479.8,3478.9,2.4922]
[1721158684971,3.0,3479.7,3478.5,0.30020915]
[1721158685175,2.87394,3479.6,3478.5,0.30020915]
[1721158685830,2.8742,3479.3,3478.5,0.30020915]
[1721158685980,2.8742,3479.3,3478.4,2.3001]
[1721158686318,3.309076,3479.3,3478.4,2.3001]
[1721158686726,0.434876,3479.3,3478.4,2.6003462]
[1721158687030,2.87392,3479.6,3478.4,2.6003462]
[1721158687232,3.0,3479.7,3478.5,2.87478]
[1721158687380,2.87372,3479.8,3478.4,2.6003462]
[1721158687719,2.87382,3479.7,3478.5,2.87478]
[1721158688020,2.87382,3479.7,3478.6,0.83500562]
[1721158688321,2.87369,3479.9,3478.6,3.70970562]
[1721158688490,5.87373,3479.8,3478.6,3.70970562]
[1721158688692,3.0,3479.8,3478.7,2.87462]
[1721158688899,3.0,3480.0,3478.8,2.87449]
[1721158689085,3.0,3480.0,3478.9,0.65841956]
[1721158689286,5.87361,3480.0,3478.6,0.83500562]
[1721158689486,2.87381,3479.7,3478.4,2.6003462]
[1721158690614,2.87381,3479.7,3478.5,2.87479]
[1721158691176,2.87381,3479.7,3478.4,2.6003462]
[1721158691508,2.87381,3479.7,3478.4,5.4752162]
[1721158692286,2.87365,3479.9,3478.5,2.87473]
[1721158692479,3.0,3479.8,3478.7,2.87462]
[1721158692691,10.22351,3480.1,3478.7,2.87462]
[1721158692692,3.0,3480.0,3478.8,2.87454]
[1721158693095,5.87358,3480.0,3478.7,2.87462]
[1721158693310,5.87358,3480.0,3478.6,0.83499762]
[1721158693549,2.87373,3479.8,3478.6,0.83499762]
[1721158693716,5.87381,3479.7,3478.6,0.83499762]
[1721158694042,2.87419,3479.3,3478.4,2.6003462]
[1721158694254,2.87419,3479.3,3478.4,0.3002462]
[1721158694255,2.87427,3479.2,3478.4,0.3002462]
[1721158694548,2.8743,3479.1,3478.4,0.3002462]
[1721158695115,2.8744,3479.0,3478.4,0.3002462]
[1721158696057,2.87449,3478.9,3478.4,0.3002462]
[1721158696223,2.87465,3478.7,3477.8,2.3421]
[1721158696559,2.87449,3478.9,3477.9,0.29940575]
[1721158697120,2.87472,3478.6,3477.9,0.29940575]
[1721158697423,5.87461,3478.8,3477.9,0.29940575]
[1721158697636,2.87464,3478.7,3477.9,0.29940575]
[1721158697822,3.0,3478.6,3477.9,0.29940575]
[1721158698022,2.87483,3478.5,3477.9,0.29940575]
[1721158698223,2.87505,3478.2,3477.2,0.1525938]
[1721158698746,2.87572,3477.4,3477.2,0.1525938]
[1721158699039,9.11979,3477.3,3477.2,0.1525938]
[1721158699217,12.66085734,3477.3,3477.2,0.1525938]
[1721158699732,9.41685734,3477.3,3477.2,0.1525938]
[1721158700364,9.96685734,3477.3,3477.2,0.1525938]
[1721158700564,12.84264734,3477.3,3477.2,0.1525938]
[1721158700924,9.96685734,3477.3,3477.2,0.1525938]
[1721158701349,9.41685734,3477.3,3477.2,0.1525938]
[1721158701937,2.8754,3477.8,3477.2,0.1525938]
[1721158702145,7.35,3478.6,3477.2,0.1525938]
[1721158702343,12.44,3479.1,3477.2,0.1525938]
[1721158702344,2.8748,3478.5,3477.2,0.1525938]
[1721158702674,2.8746,3478.8,3477.4,2.8757]
[1721158702873,2.87464,3478.7,3477.4,2.8757]
[1721158703220,2.87483,3478.5,3477.3,2.4081]
[1721158703384,2.87519,3478.1,3477.2,0.1525938]
[1721158703675,2.87539,3477.8,3477.2,0.1525938]
[1721158703885,7.35,3478.2,3477.2,0.1525938]
[1721158704024,10.35,3478.2,3477.2,0.1525938]
[1721158704455,10.35,3478.2,3477.3,2.4081]
[1721158704770,13.22505,3478.2,3477.3,2.4081]
[1721158705080,2.87521,3478.0,3477.2,0.1525938]
[1721158705368,2.8753,3477.9,3477.2,0.1525938]
[1721158705524,3.0,3477.8,3477.2,0.1525938]
[1721158705922,2.87546,3477.7,3477.2,0.1525938]
[1721158706174,2.87579,3477.3,3477.2,0.1525938]
[1721158706389,3.450923,3477.3,3477.2,0.1525938]
[1721158706527,6.450923,3477.3,3477.2,0.1525938]
[1721158706732,9.326713,3477.3,3477.2,0.1525938]
[1721158706933,3.575133,3477.3,3477.2,0.1525938]
[1721158707361,2.87538,3477.8,3477.2,0.1525938]
[1721158707548,3.0,3477.7,3477.2,0.1525938]
[1721158707751,3.0,3477.9,3477.2,0.1525938]
[1721158707927,3.0,3477.8,3477.2,0.1525938]
[1721158708339,3.0,3478.0,3477.2,0.1525938]
[1721158708566,7.35,3478.2,3477.2,0.1525938]
[1721158708567,5.87515,3478.1,3477.2,0.1525938]
[1721158708882,3.0,3478.1,3477.2,0.1525938]
[1721158709236,5.87514,3478.1,3477.2,0.1525938]
[1721158709762,3.0,3478.1,3477.2,0.1525938]
[1721158709936,2.87555,3477.6,3477.2,0.1525938]
[1721158711636,2.87522,3478.0,3477.2,0.1525938]
[1721158711877,3.0,3477.9,3477.2,0.1525938]
[1721158712076,3.0,3478.1,3477.2,0.1525938]
[1721158713489,7.35,3478.2,3477.4,2.87568]
[1721158713659,7.35,3478.6,3477.4,2.87568]
[1721158713973,10.2244,3479.0,3477.4,2.87568]
[1721158714270,2.87463,3478.7,3477.5,0.82087838]
[1721158714676,2.87461,3478.8,3477.5,0.82087838]
[1721158714979,3.0,3478.7,3477.5,0.82087838]
[1721158715179,5.87465,3478.7,3477.5,0.82087838]
[1721158715377,2.87472,3478.6,3477.5,0.82087838]
[1721158715576,3.0,3478.5,3477.6,0.60013584]
[1721158715791,5.8747,3478.7,3477.6,0.60013584]
[1721158715995,2.87472,3478.6,3477.6,0.60013584]
[1721158716195,3.0,3478.5,3477.6,0.60013584]
[1721158716496,3.0,3478.7,3477.6,0.60013584]
[1721158716793,3.0,3478.7,3477.7,0.42966942]
[1721158716997,5.87466,3478.7,3477.7,0.42966942]
[1721158717158,3.0,3478.7,3477.7,0.4871725]
[1721158717358,2.87452,3478.9,3477.7,0.4871725]
[1721158717359,3.0,3478.8,3477.8,0.05750308]
[1721158717681,7.35,3479.0,3477.7,0.42966942]
[1721158717991,7.35,3479.0,3477.8,3.26588853]
[1721158718607,7.35,3479.0,3477.9,2.87528]
[1721158718990,3.0,3478.9,3477.9,2.87528]
[1721158719799,7.35,3479.0,3478.1,5.29397]
[1721158720002,7.35,3479.4,3478.2,0.05749108]
[1721158720216,10.22372,3479.9,3478.3,0.82266711]
[1721158720510,2.87381,3479.7,3478.3,0.82266711]
[1721158721006,2.87381,3479.7,3478.4,2.8748]
[1721158721220,2.87381,3479.7,3478.5,2.87479]
[1721158721399,3.448563,3479.7,3478.5,3.24453571]
[1721158722105,2.87372,3479.9,3478.5,3.24453571]
[1721158722283,2.87351,3480.1,3478.6,2.4189]
[1721158722606,2.87351,3480.1,3478.7,2.87463]
[1721158723219,2.87351,3480.1,3478.8,0.05748201]
[1721158723528,3.0,3480.0,3479.0,2.87438]
[1721158723739,4.022331,3480.2,3479.1,0.05747837]
[1721158724427,4.022331,3480.2,3479.0,0.5806412]
[1721158724591,2.87348,3480.1,3478.8,2.87455]
[1721158724781,3.0,3480.0,3478.8,2.87455]
[1721158725129,3.0,3480.0,3478.9,2.87446]
[1721158725598,6.895731,3480.2,3478.9,2.87446]
[1721158725980,2.87348,3480.1,3478.8,2.87455]
[1721158726300,3.0,3480.0,3478.8,2.87455]
[1721158727182,3.0,3480.0,3478.6,5.2936]
[1721158727183,2.87378,3479.8,3478.6,2.4189]
[1721158727376,2.87389,3479.6,3478.6,2.4189]
[1721158727578,0.574767,3479.5,3478.6,2.4189]
[1721158729284,2.87384,3479.7,3478.6,2.4189]
[1721158729991,5.74773,3479.7,3478.6,2.4189]
[1721158730197,2.87407,3479.4,3478.6,2.4189]
[1721158731316,2.87431,3479.1,3478.1,2.2513]
[1721158731814,2.87414,3479.3,3478.1,2.2513]
[1721158732515,10.22401,3479.5,3478.1,2.2513]
[1721158732516,7.35,3479.5,3478.1,5.2753]
[1721158732702,7.35,3479.5,3478.6,2.87465]
[1721158734219,7.35,3479.5,3478.7,2.2513]
[1721158734414,2.87378,3479.8,3478.7,2.2513]
[1721158734616,3.0,3479.7,3478.7,2.2513]
[1721158734815,5.87382,3479.7,3478.7,2.2513]
[1721158735191,3.0,3479.7,3478.7,2.2513]
[1721158735386,5.87376,3479.8,3478.7,2.2513]
[1721158735602,6.461136,3479.8,3478.7,2.2513]
[1721158735990,3.0,3479.8,3478.7,2.2513]
[1721158736296,7.35,3480.2,3478.8,0.05747623]
[1721158736495,3.0,3480.1,3478.8,0.05747623]
[1721158736805,3.0,3480.1,3478.7,2.2513]
[1721158736806,3.0,3480.1,3479.0,2.87437]
[1721158737124,1.50016903,3480.7,3478.7,5.2753]
[1721158737125,7.35,3480.6,3478.7,5.2753]
[1721158737324,2.87299,3480.7,3479.3,2.87412]
[1721158737522,2.87306,3480.6,3479.3,2.87412]
[1721158738515,2.87347,3480.2,3479.0,2.4749]
[1721158738837,2.87356,3480.0,3479.0,2.4749]
[1721158739003,2.87373,3479.8,3479.0,2.4749]
[1721158739202,3.448539,3479.7,3478.5,2.4749]
[1721158740895,0.574729,3479.7,3478.5,5.34969]
[1721158741339,0.574729,3479.7,3478.5,2.4749]
[1721158741340,2.87394,3479.6,3478.5,2.4749]
[1721158741636,2.8741,3479.4,3478.5,2.4749]
[1721158741806,3.0,3479.5,3478.5,2.4749]
[1721158742200,2.8736,3480.0,3478.5,5.34969]
[1721158742401,5.87367,3479.9,3478.6,2.87471]
[1721158742638,5.87367,3479.9,3478.7,0.534961]
[1721158742639,3.887367,3479.9,3478.7,0.534961]
[1721158742862,3.0,3479.9,3478.8,2.87454]
[1721158743011,5.87349,3480.1,3478.8,2.87454]
[1721158743205,2.87357,3480.0,3478.8,2.87454]
[1721158743530,3.0,3479.9,3478.8,2.87454]
[1721158743741,3.0,3480.1,3478.9,0.05747819]
[1721158743915,3.0,3480.1,3478.9,3.56609711]
[1721158744105,10.2233,3480.4,3479.2,2.87421]
[1721158744305,10.2233,3480.4,3479.0,2.4479]
[1721158744306,2.87331,3480.3,3479.0,2.4479]
[1721158744663,2.87348,3480.1,3479.0,2.4479]
[1721158745923,2.87331,3480.3,3479.0,5.32228]
[1721158746117,3.895771,3480.2,3479.0,6.1954521]
[1721158746389,2.87365,3479.9,3479.0,2.4479]
[1721158749633,1.022331,3480.2,3479.0,2.4479]
[1721158749836,3.0,3480.2,3479.2,2.87421]
[1721158750035,3.0,3480.3,3479.3,2.87412]
[1721158750580,7.35,3480.4,3478.8,3.024]
[1721158750581,7.35,3480.4,3479.4,2.3606]
[1721158750731,7.35,3480.4,3479.7,2.87374]
[1721158750933,2.87282,3480.9,3479.7,2.87374]
[1721158751127,7.35,3481.0,3479.8,3.448471]
[1721158751340,7.35,3481.0,3480.0,2.3606]
[1721158751541,2.87258,3481.2,3480.0,2.3606]
[1721158752551,5.87267,3481.1,3480.0,2.3606]
[1721158755855,3.0,3481.1,3480.0,2.3606]
[1721158756057,3.0,3481.3,3480.2,2.87338]
[1721158756395,10.22248,3481.4,3480.3,0.05745462]
[1721158756396,7.35,3481.4,3480.3,0.05745462]
[1721158756693,7.35,3481.4,3480.6,2.87302]
[1721158756994,7.35,3481.4,3480.6,3.393872]
[1721158757689,7.35,3481.4,3480.7,2.87297]
[1721158757867,3.0,3481.7,3480.7,2.87297]
[1721158758213,3.0,3481.6,3480.8,2.87289]
[1721158758363,3.0,3481.9,3480.9,0.3393742]
[1721158760059,3.0,3481.9,3481.1,2.87264]
[1721158761018,7.35,3482.0,3481.2,5.25683]
[1721158761177,10.22141,3482.6,3481.2,5.25683]
[1721158761382,2.8715,3482.5,3481.2,5.25683]
[1721158761600,3.445784,3482.5,3481.3,0.812947]
[1721158762394,3.0,3482.4,3481.3,0.812947]
[1721158762904,5.87159,3482.4,3481.3,0.812947]
[1721158763698,2.87171,3482.3,3481.2,2.3843]
[1721158763912,2.87188,3482.1,3481.2,2.3843]
[1721158764504,3.0,3482.2,3481.2,2.3843]
[1721158764992,3.0,3482.4,3481.2,2.3843]
[1721158765201,3.0,3482.4,3481.2,5.25682]
[1721158765370,3.0,3482.5,3481.3,3.68542]
[1721158765702,3.0,3482.7,3481.3,3.68542]
[1721158765932,2.87146,3482.6,3481.3,3.68542]
[1721158766062,3.0,3482.7,3481.4,2.87234]
[1721158766268,3.0,3482.9,3481.5,0.606959]
[1721158766571,1.49871204,3483.5,3481.5,0.606959]
[1721158766572,7.35,3483.3,3481.6,2.35863218]
[1721158766771,2.87085,3483.3,3482.0,2.87184]
[1721158767086,2.87085,3483.3,3482.1,0.287184]
[1721158767087,2.87093,3483.2,3482.1,0.287184]
[1721158767301,2.87093,3483.2,3481.6,5.1734]
[1721158767519,2.87108,3483.0,3481.7,2.87216]
[1721158767928,2.87125,3482.8,3481.6,5.17342]
[1721158768222,2.87147,3482.6,3481.6,2.3012]
[1721158768435,2.8713,3482.8,3481.6,2.3012]
[1721158768727,2.8713,3482.8,3481.6,2.9605499]
[1721158768728,3.445541,3482.8,3481.6,2.9605499]
[1721158768890,2.87139,3482.7,3481.6,2.9605499]
[1721158769085,2.87168,3482.3,3481.6,2.3012]
[1721158769291,2.87182,3482.2,3480.7,5.25308]
[1721158769528,2.87193,3482.0,3480.7,2.3801]
[1721158772029,2.87193,3482.0,3480.7,5.253]
[1721158772936,2.87193,3482.0,3480.7,2.3801]
[1721158773127,3.574375,3481.9,3480.7,3.192735]
[1721158773594,3.574375,3481.9,3480.7,6.065715]
[1721158774292,3.0,3481.9,3480.7,6.065715]
[1721158774497,3.0,3481.9,3480.8,2.87289]
[1721158774717,3.0,3482.1,3480.8,2.87289]
[1721158775850,2.87196,3482.0,3480.8,2.87289]
[1721158776018,5.872,3481.9,3480.7,3.192735]
[1721158776224,5.872,3481.9,3480.8,0.6065765]
[1721158776947,2.87234,3481.5,3480.1,2.3273]
[1721158777135,2.87211,3481.8,3480.3,2.8733]
[1721158777320,10.35,3481.9,3480.1,2.3273]
[1721158777520,10.35,3481.9,3480.7,2.87292]
[1721158778053,10.35,3481.9,3480.7,5.74582]
[1721158778650,13.22204,3481.9,3480.6,2.87303]
[1721158778945,10.35,3481.9,3480.7,2.87292]
[1721158779119,10.35,3481.9,3480.8,0.574601]
[1721158779320,5.87199,3481.9,3480.8,0.574601]
[1721158779524,3.0,3481.9,3480.9,2.3273]
[1721158779709,5.87183,3482.1,3480.9,5.20006]
[1721158779909,5.87183,3482.1,3481.0,0.8647581]
[1721158780968,3.0,3482.1,3481.0,0.8647581]
[1721158781411,7.35,3482.3,3481.0,0.8647581]
[1721158781412,2.87201,3481.9,3481.0,0.8647581]
[1721158781614,2.87201,3481.9,3480.9,2.3273]
[1721158782763,2.87222,3481.7,3480.9,2.3273]
[1721158784464,2.87222,3481.7,3480.4,5.20311]
[1721158784875,2.87224,3481.6,3480.4,2.3299]
[1721158785081,2.87224,3481.6,3480.5,0.89371964]
[1721158786037,2.87203,3481.9,3480.5,3.76685964]
[1721158786643,3.0,3482.2,3481.0,2.87273]
[1721158786850,5.87176,3482.2,3481.0,2.87273]
[1721158787372,3.0,3482.2,3481.3,2.483]
[1721158787532,3.0,3482.3,3481.4,0.54129921]
[1721158787733,2.87146,3482.6,3481.4,0.54129921]
[1721158788032,2.87146,3482.6,3481.4,3.41369921]
[1721158788467,2.87146,3482.6,3481.4,0.54129921]
[1721158788671,2.87139,3482.7,3481.5,0.05743596]
[1721158788833,2.87139,3482.7,3481.6,0.59542052]
[1721158789036,2.87123,3482.9,3481.6,0.59542052]
[1721158789233,10.22106,3483.1,3481.8,2.87207]
[1721158789795,2.87087,3483.3,3481.9,5.35494]
[1721158790076,2.87087,3483.3,3482.1,2.87182]
[1721158790369,2.87092,3483.2,3482.1,2.87182]
[1721158791471,2.87071,3483.5,3482.1,2.87182]
[1721158791472,2.87081,3483.4,3482.1,2.87182]
[1721158792073,3.0,3483.3,3482.1,2.87182]
[1721158792270,3.0,3483.3,3482.2,2.87173]
[1721158792440,2.87077,3483.4,3482.3,0.6279044]
[1721158792638,3.0,3483.3,3482.3,0.6279044]
[1721158793368,3.0,3483.3,3482.3,3.4995244]
[1721158793581,3.0,3483.5,3482.5,2.87149]
[1721158793775,3.0,3483.5,3482.3,3.4994944]
[1721158793967,5.87074,3483.5,3482.4,0.93952844]
[1721158794270,5.87074,3483.5,3482.3,0.6279044]
[1721158794271,2.87076,3483.4,3482.3,0.6279044]
[1721158794458,3.0,3483.3,3482.3,0.6279044]
[1721158795171,3.0,3483.3,3482.1,2.87179]
[1721158795558,3.0,3483.3,3482.1,2.87181]
[1721158795759,3.0,3483.3,3482.0,0.535494]
[1721158795760,5.87086,3483.3,3482.0,3.407324]
[1721158796083,5.87086,3483.3,3481.4,3.0]
[1721158796084,2.4717,3483.2,3481.4,2.473]
[1721158796267,2.87173,3482.3,3481.4,2.473]
[1721158796640,7.3732355,3482.6,3481.4,5.34538]
[1721158796890,2.87145,3482.6,3481.4,5.34538]
[1721158797042,3.0,3482.5,3481.5,2.87228]
[1721158797241,3.0,3482.7,3481.6,3.693986]
[1721158797488,3.0,3482.7,3481.7,2.87212]
[1721158798210,3.0,3482.7,3481.6,3.693986]
[1721158798211,7.35,3482.8,3481.8,2.87207]
[1721158798393,7.35,3482.8,3482.0,2.8719]
[1721158798588,7.35,3482.8,3481.8,2.87207]
[1721158798921,7.35,3482.8,3481.9,0.6566036]
[1721158800018,2.87108,3483.0,3481.9,0.6566036]
[1721158800324,3.0,3482.9,3481.9,3.5285536]
[1721158800496,5.87105,3483.1,3481.9,0.6566036]
[1721158800705,5.87105,3483.1,3482.0,0.35286436]
[1721158801112,3.0,3483.1,3482.0,0.35286436]
[1721158801282,3.0,3483.2,3482.0,3.22477436]
[1721158801489,2.871,3483.1,3482.0,0.35286436]
[1721158801682,3.0,3483.0,3482.0,3.22474436]
[1721158801997,3.0,3483.2,3482.1,0.60967544]
[1721158802317,5.87092,3483.2,3482.1,0.60967544]
[1721158802519,2.871,3483.1,3482.1,0.60967544]
[1721158802724,3.0,3483.0,3482.1,0.60967544]
[1721158803082,2.87117,3482.9,3482.1,0.60967544]
[1721158803283,3.0,3482.8,3481.4,2.77220042]
[1721158803522,2.87149,3482.6,3481.4,2.77220042]
[1721158803820,1.80481734,3483.0,3481.4,5.64459042]
[1721158804016,2.87146,3482.6,3481.4,5.64459042]
[1721158804185,2.87125,3482.8,3481.4,5.64459042]
[1721158804520,2.87134,3482.7,3481.5,0.85171004]
[1721158805322,3.0,3483.0,3481.5,0.85171004]
[1721158805507,5.87101,3483.1,3481.8,2.87207]
[1721158806104,2.87113,3483.0,3481.6,2.87218]
[1721158806423,5.74266,3482.8,3481.5,3.72402004]
[1721158806725,5.74266,3482.8,3481.6,0.93686705]
[1721158807037,2.87133,3482.7,3481.6,0.93686705]
[1721158807325,2.87122,3482.9,3481.6,3.80910705]
[1721158807533,3.0,3482.8,3481.7,2.87209]
[1721158809535,3.0,3482.8,3481.6,0.93686705]
[1721158809831,3.0,3482.8,3481.8,2.87207]
[1721158810013,3.0,3483.0,3481.8,2.87207]
[1721158810192,3.0,3483.0,3481.7,0.93101171]
[1721158810393,3.0,3483.2,3482.1,2.87175]
[1721158810626,3.0,3483.2,3482.2,0.522455]
[1721158811321,3.0,3483.2,3482.2,3.394185]
[1721158811524,3.0,3483.3,3482.2,3.394185]
[1721158811832,2.87082,3483.4,3482.2,3.394185]
[1721158811994,3.0,3483.3,3482.2,3.394185]
[1721158812191,3.0,3483.3,3482.3,0.6266085]
[1721158812415,3.0,3483.5,3482.5,2.87143]
[1721158812608,3.0,3483.5,3482.4,2.87156]
[1721158813160,3.0,3483.5,3482.3,0.6266085]
[1721158813333,3.0,3483.5,3482.5,2.87149]
[1721158814913,3.0,3483.6,3482.5,2.87149]